fUSD/lending_fUSD_20250617
["ID","MTS","AMOUNT","RATE_DAILY","PERIOD"]
[366260827,1750164753629,-490.0,0.00017753,2]
[366260828,1750164753640,-151.0,0.00017753,2]
[366260829,1750164753651,-151.0,0.00017753,2]
[366260830,1750164753662,-151.0,0.00017753,2]
[366260831,1750164753673,-151.0,0.00017753,2]
[366260832,1750164753687,-490.0,0.00017753,2]
[366260833,1750164753697,-490.0,0.00017753,2]
[366260834,1750164753708,-151.0,0.00017753,2]
[366260835,1750164753719,-151.0,0.00017753,2]
[366260836,1750164753729,-490.0,0.00017753,2]
[366260837,1750164753740,-263.92,0.00017753,2]
[366260838,1750164753750,-151.0,0.00017753,2]
[366260839,1750164753761,-151.0,0.00017753,2]
[366260840,1750164753771,-151.0,0.00017753,2]
[366260841,1750164753781,-589.540499,0.00017753,2]
[366260842,1750164753791,-490.0,0.00017753,2]
[366260843,1750164753802,-589.540499,0.00017753,2]
[366260844,1750164753811,-490.0,0.00017753,2]
[366260845,1750164753821,-490.0,0.00017753,2]
[366260846,1750164753831,-490.0,0.00017753,2]
[366260847,1750164753842,-490.0,0.00017753,2]
[366260848,1750164753853,-490.0,0.00017753,2]
[366260849,1750164753863,-490.0,0.00017753,2]
[366260850,1750164753873,-151.0,0.00017753,2]
[366260851,1750164753883,-151.0,0.00017753,2]
[366260852,1750164753893,-490.0,0.00017753,2]
[366260853,1750164753903,-490.0,0.00017753,2]
[366260854,1750164753913,-490.0,0.00017753,2]
[366260855,1750164753923,-153.817576,0.00017753,2]
[366260856,1750164753933,-151.0,0.00017753,2]
[366260857,1750164753943,-151.0,0.00017753,2]
[366260858,1750164753953,-490.0,0.00017753,2]
[366260859,1750164753964,-490.0,0.00017753,2]
[366260860,1750164753974,-490.0,0.00017753,2]
[366260861,1750164753984,-490.0,0.00017753,2]
[366260862,1750164753995,-490.0,0.00017753,2]
[366260863,1750164754004,-490.0,0.00017753,2]
[366260864,1750164754014,-490.0,0.00017753,2]
[366260865,1750164754024,-490.0,0.00017753,2]
[366260866,1750164754034,-490.0,0.00017753,2]
[366260867,1750164754045,-490.0,0.00017753,2]
[366260868,1750164754056,-546.58,0.00017753,2]
[366260869,1750164754066,-490.0,0.00017753,2]
[366260870,1750164754076,-427.593687,0.00017753,2]
[366260871,1750164754086,-490.0,0.00017753,2]
[366260872,1750164754097,-427.593687,0.00017753,2]
[366260873,1750164754107,-151.0,0.00017753,2]
[366260874,1750164754117,-543.01,0.00017753,2]
[366260875,1750164754127,-490.0,0.00017753,2]
[366260876,1750164754137,-151.0,0.00017753,2]
[366260877,1750164754147,-546.23,0.00017753,2]
[366260878,1750164754157,-806.69,0.00017753,2]
[366260879,1750164754168,-490.0,0.00017753,2]
[366260880,1750164754177,-490.0,0.00017753,2]
[366260881,1750164754191,-150.0,0.00017753,2]
[366260882,1750164754201,-490.0,0.00017753,2]
[366260883,1750164754212,-715.33,0.00017753,2]
[366260884,1750164754222,-500.75,0.00017753,2]
[366260885,1750164754232,-151.0,0.00017753,2]
[366260886,1750164754241,-151.0,0.00017753,2]
[366260887,1750164754252,-490.0,0.00017753,2]
[366260888,1750164754263,-880.65,0.00017753,2]
[366260889,1750164754273,-490.0,0.00017753,2]
[366260890,1750164754285,-490.0,0.00017753,2]
[366260891,1750164754295,-2255.52,0.00017753,2]
[366260892,1750164754306,-1412.16,0.00017753,2]
[366260893,1750164754317,-882.97,0.00017753,2]
[366260894,1750164754328,-490.0,0.00017753,2]
[366260895,1750164754338,-834.11,0.00017753,2]
[366260896,1750164754349,-490.0,0.00017753,2]
[366260897,1750164754359,-490.0,0.00017753,2]
[366260898,1750164754370,-490.0,0.00017753,2]
[366260899,1750164754380,-490.0,0.00017753,2]
[366260900,1750164754390,-832.39,0.00017753,2]
[366260901,1750164754400,-490.0,0.00017753,2]
[366260902,1750164754410,-490.0,0.00017753,2]
[366260903,1750164754421,-490.0,0.00017753,2]
[366260904,1750164754431,-490.0,0.00017753,2]
[366260905,1750164754443,-490.0,0.00017753,2]
[366260906,1750164754454,-920.64,0.00017753,2]
[366260907,1750164754465,-855.44,0.00017753,2]
[366260908,1750164754475,-151.0,0.00017753,2]
[366260909,1750164754486,-490.0,0.00017753,2]
[366260910,1750164754497,-616.61,0.00017753,2]
[366260911,1750164754508,-490.0,0.00017753,2]
[366260912,1750164754518,-1137.38,0.00017753,2]
[366260913,1750164754529,-505.82,0.00017753,2]
[366260914,1750164754540,-490.0,0.00017753,2]
[366260915,1750164754551,-490.0,0.00017753,2]
[366260916,1750164754562,-662.168044,0.00017753,2]
[366260917,1750164754572,-490.0,0.00017753,2]
[366260918,1750164754582,-1072.95,0.00017753,2]
[366260919,1750164754592,-618.54,0.00017753,2]
[366260920,1750164754603,-151.0,0.00017753,2]
[366260921,1750164754613,-1048.33,0.00017753,2]
[366260922,1750164754623,-490.0,0.00017753,2]
[366260923,1750164754635,-490.0,0.00017753,2]
[366260924,1750164754645,-490.0,0.00017753,2]
[366260925,1750164754656,-151.0,0.00017753,2]
[366260926,1750164754666,-490.0,0.00017753,2]
[366260927,1750164754676,-490.0,0.00017753,2]
[366260928,1750164754687,-604.26,0.00017753,2]
[366260929,1750164754697,-490.0,0.00017753,2]
[366260930,1750164754708,-490.0,0.00017753,2]
[366260931,1750164754718,-598.755129,0.00017753,2]
[366260932,1750164754728,-490.0,0.00017753,2]
[366260933,1750164754738,-494.61,0.00017753,2]
[366260934,1750164754749,-490.0,0.00017753,2]
[366260935,1750164754759,-925.36,0.00017753,2]
[366260936,1750164754768,-629.26,0.00017753,2]
[366260937,1750164754778,-598.755129,0.00017753,2]
[366260938,1750164754788,-490.0,0.00017753,2]
[366260939,1750164754798,-1024.62,0.00017753,2]
[366260940,1750164754808,-490.0,0.00017753,2]
[366260941,1750164754818,-534.01,0.00017753,2]
[366260942,1750164754827,-490.0,0.00017753,2]
[366260943,1750164754837,-1219.14,0.00017753,2]
[366260944,1750164754846,-490.0,0.00017753,2]
[366260945,1750164754856,-490.0,0.00017753,2]
[366260946,1750164754866,-608.67,0.00017753,2]
[366260947,1750164754877,-628.4,0.00017753,2]
[366260948,1750164754887,-490.0,0.00017753,2]
[366260949,1750164754897,-490.0,0.00017753,2]
[366260950,1750164754907,-490.0,0.00017753,2]
[366260951,1750164754918,-741.58,0.00017753,2]
[366260952,1750164754928,-576.72,0.00017753,2]
[366260953,1750164754938,-490.0,0.00017753,2]
[366260954,1750164754948,-526.38,0.00017753,2]
[366260955,1750164754958,-612.0,0.00017753,2]
[366260956,1750164754968,-490.0,0.00017753,2]
[366260957,1750164754977,-490.0,0.00017753,2]
[366260958,1750164754987,-638.52,0.00017753,2]
[366260959,1750164754997,-490.0,0.00017753,2]
[366260960,1750164755007,-565.57,0.00017753,2]
[366260961,1750164755017,-490.0,0.00017753,2]
[366260962,1750164755027,-490.0,0.00017753,2]
[366260963,1750164755037,-1223.14,0.00017753,2]
[366260964,1750164755047,-715.85,0.00017753,2]
[366260965,1750164755057,-490.0,0.00017753,2]
[366260966,1750164755066,-490.0,0.00017753,2]
[366260967,1750164755076,-1060.81,0.00017753,2]
[366260968,1750164755086,-1389.56,0.00017753,2]
[366260969,1750164755096,-627.1,0.00017753,2]
[366260970,1750164755106,-490.0,0.00017753,2]
[366260971,1750164755116,-490.0,0.00017753,2]
[366260972,1750164755127,-856.55,0.00017753,2]
[366260973,1750164755137,-490.0,0.00017753,2]
[366260974,1750164755146,-904.8,0.00017753,2]
[366260975,1750164755156,-1659.85,0.00017753,2]
[366260976,1750164755165,-614.6,0.00017753,2]
[366260977,1750164755175,-1415.52,0.00017753,2]
[366260978,1750164755190,-490.0,0.00017753,2]
[366260979,1750164755200,-490.0,0.00017753,2]
[366260980,1750164755209,-1049.28,0.00017753,2]
[366260981,1750164755219,-663.92,0.00017753,2]
[366260982,1750164755230,-708.23,0.00017753,2]
[366260983,1750164755239,-1322.55,0.00017753,2]
[366260984,1750164755250,-490.0,0.00017753,2]
[366260985,1750164755261,-1219.76,0.00017753,2]
[366260986,1750164755272,-2206.61,0.00017753,2]
[366260987,1750164755281,-490.0,0.00017753,2]
[366260988,1750164755292,-490.0,0.00017753,2]
[366260989,1750164755302,-490.0,0.00017753,2]
[366260990,1750164755312,-731.67,0.00017753,2]
[366260991,1750164755322,-538.95,0.00017753,2]
[366260992,1750164755463,-520.27,0.00017753,2]
[366260993,1750164755474,-490.0,0.00017753,2]
[366260994,1750164755485,-490.0,0.00017753,2]
[366260995,1750164755495,-490.0,0.00017753,2]
[366260996,1750164755505,-709.65,0.00017753,2]
[366260997,1750164755515,-490.0,0.00017753,2]
[366260998,1750164755524,-746.18,0.00017753,2]
[366260999,1750164755535,-490.0,0.00017753,2]
[366261000,1750164755545,-490.0,0.00017753,2]
[366261001,1750164755555,-490.0,0.00017753,2]
[366261002,1750164755565,-490.0,0.00017753,2]
[366261003,1750164755574,-908.62,0.00017753,2]
[366261004,1750164755584,-490.0,0.00017753,2]
[366261005,1750164755594,-577.82,0.00017753,2]
[366261006,1750164755604,-247.813536,0.00017753,2]
[366261007,1750164755614,-490.0,0.00017753,2]
[366261008,1750164755624,-490.0,0.00017753,2]
[366261009,1750164755634,-1326.45,0.00017753,2]
[366261010,1750164755644,-247.813536,0.00017753,2]
[366261011,1750164755654,-556.92436937,0.00017753,2]
[366261012,1750164755663,-957.51,0.00017753,2]
[366261013,1750164755673,-827.74,0.00017753,2]
[366261014,1750164755683,-653.24,0.00017753,2]
[366261015,1750164755692,-490.0,0.00017753,2]
[366261016,1750164755702,-1030.84,0.00017753,2]
[366261017,1750164755712,-490.0,0.00017753,2]
[366261018,1750164755722,-490.0,0.00017753,2]
[366261019,1750164755732,-490.0,0.00017753,2]
[366261020,1750164755742,-490.0,0.00017753,2]
[366261021,1750164755751,-155.740015,0.00017753,2]
[366261022,1750164755761,-490.0,0.00017753,2]
[366261023,1750164755771,-543.54,0.00017753,2]
[366261024,1750164755782,-490.0,0.00017753,2]
[366261025,1750164755791,-490.0,0.00017753,2]
[366261026,1750164755801,-1310.15,0.00017753,2]
[366261027,1750164755811,-496.68,0.00017753,2]
[366261028,1750164755821,-155.740015,0.00017753,2]
[366261029,1750164755831,-1005.43,0.00017753,2]
[366261030,1750164755840,-490.0,0.00017753,2]
[366261031,1750164755850,-490.0,0.00017753,2]
[366261032,1750164755860,-490.0,0.00017753,2]
[366261033,1750164755870,-495.48,0.00017753,2]
[366261034,1750164755880,-975.37,0.00017753,2]
[366261035,1750164755889,-525.43,0.00017753,2]
[366261036,1750164755899,-882.14,0.00017753,2]
[366261037,1750164755909,-490.0,0.00017753,2]
[366261038,1750164755919,-490.0,0.00017753,2]
[366261039,1750164755929,-490.0,0.00017753,2]
[366261040,1750164755939,-490.0,0.00017753,2]
[366261041,1750164755949,-151.0,0.00017753,2]
[366261042,1750164755958,-151.0,0.00017753,2]
[366261043,1750164755968,-151.0,0.00017753,2]
[366261044,1750164755978,-151.0,0.00017753,2]
[366261045,1750164755988,-169.258649,0.00017753,2]
[366261046,1750164755998,-490.0,0.00017753,2]
[366261047,1750164756008,-534.08,0.00017753,2]
[366261048,1750164756018,-659.94,0.00017753,2]
[366261049,1750164756028,-490.0,0.00017753,2]
[366261050,1750164756038,-1026.29,0.00017753,2]
[366261051,1750164756048,-571.1,0.00017753,2]
[366261052,1750164756057,-490.0,0.00017753,2]
[366261053,1750164756067,-490.0,0.00017753,2]
[366261054,1750164756076,-817.67,0.00017753,2]
[366261055,1750164756089,-490.0,0.00017753,2]
[366261056,1750164756098,-490.0,0.00017753,2]
[366261057,1750164756108,-151.0,0.00017753,2]
[366261058,1750164756117,-151.0,0.00017753,2]
[366261059,1750164756127,-151.0,0.00017753,2]
[366261060,1750164756136,-531.3,0.00017753,2]
[366261061,1750164756146,-156.195006,0.00017753,2]
[366261062,1750164756156,-490.0,0.00017753,2]
[366261063,1750164756166,-490.0,0.00017753,2]
[366261064,1750164756176,-490.0,0.00017753,2]
[366261065,1750164756188,-490.0,0.00017753,2]
[366261066,1750164756199,-1100.14,0.00017753,2]
[366261067,1750164756209,-660.53,0.00017753,2]
[366261068,1750164756219,-962.4,0.00017753,2]
[366261069,1750164756229,-490.0,0.00017753,2]
[366261070,1750164756239,-490.0,0.00017753,2]
[366261071,1750164756249,-490.0,0.00017753,2]
[366261072,1750164756259,-629.06506381,0.00017753,2]
[366261073,1750164756270,-490.0,0.00017753,2]
[366261074,1750164756280,-720.15,0.00017753,2]
[366261075,1750164756290,-490.0,0.00017753,2]
[366261076,1750164756300,-490.0,0.00017753,2]
[366261077,1750164756310,-1377.37,0.00017753,2]
[366261078,1750164756320,-498.02,0.00017753,2]
[366261079,1750164756330,-151.0,0.00017753,2]
[366261080,1750164756340,-172.37326,0.00017753,2]
[366261081,1750164756350,-336.18,0.00017753,2]
[366261082,1750164756359,-490.0,0.00017753,2]
[366261083,1750164756369,-490.0,0.00017753,2]
[366261084,1750164756379,-490.0,0.00017753,2]
[366261085,1750164756389,-490.0,0.00017753,2]
[366261086,1750164756399,-152.554459,0.00017753,2]
[366261087,1750164756408,-490.0,0.00017753,2]
[366261088,1750164756418,-490.0,0.00017753,2]
[366261089,1750164756429,-490.0,0.00017753,2]
[366261090,1750164756440,-1323.87,0.00017753,2]
[366261091,1750164756449,-250.0,0.00017753,2]
[366261092,1750164756459,-490.0,0.00017753,2]
[366261093,1750164756468,-490.0,0.00017753,2]
[366261094,1750164756479,-820.55,0.00017753,2]
[366261095,1750164756489,-490.0,0.00017753,2]
[366261096,1750164756499,-1759.73,0.00017753,2]
[366261097,1750164756509,-490.0,0.00017753,2]
[366261098,1750164756519,-490.0,0.00017753,2]
[366261099,1750164756529,-763.5,0.00017753,2]
[366261100,1750164756539,-727.1,0.00017753,2]
[366261101,1750164756549,-490.0,0.00017753,2]
[366261102,1750164756560,-1756.61,0.00017753,2]
[366261103,1750164756570,-2106.23,0.00017753,2]
[366261104,1750164756579,-887.07,0.00017753,2]
[366261105,1750164756589,-490.0,0.00017753,2]
[366261106,1750164756600,-151.0,0.00017753,2]
[366261107,1750164756611,-151.0,0.00017753,2]
[366261108,1750164756621,-490.0,0.00017753,2]
[366261109,1750164756631,-151.0,0.00017753,2]
[366261110,1750164756641,-151.0,0.00017753,2]
[366261111,1750164756650,-3566.07,0.00017753,2]
[366261112,1750164756659,-151.0,0.00017753,2]
[366261113,1750164756669,-151.0,0.00017753,2]
[366261114,1750164756679,-1002.31,0.00017753,2]
[366261115,1750164756689,-1459.85,0.00017753,2]
[366261116,1750164756699,-1019.07,0.00017753,2]
[366261117,1750164756708,-2465.54,0.00017753,2]
[366261118,1750164756718,-490.0,0.00017753,2]
[366261119,1750164756727,-1541.9,0.00017753,2]
[366261120,1750164756737,-490.0,0.00017753,2]
[366261121,1750164756747,-490.0,0.00017753,2]
[366261122,1750164756756,-1285.58,0.00017753,2]
[366261123,1750164756766,-2302.59,0.00017753,2]
[366261124,1750164756775,-490.0,0.00017753,2]
[366261125,1750164756785,-490.0,0.00017753,2]
[366261126,1750164756795,-552.55,0.00017753,2]
[366261127,1750164756804,-1209.47,0.00017753,2]
[366261128,1750164756814,-1099.79,0.00017753,2]
[366261129,1750164756824,-490.0,0.00017753,2]
[366261130,1750164756833,-815.84,0.00017753,2]
[366261131,1750164756843,-1690.85,0.00017753,2]
[366261132,1750164756853,-490.0,0.00017753,2]
[366261133,1750164756862,-490.0,0.00017753,2]
[366261134,1750164756872,-1609.53,0.00017753,2]
[366261135,1750164756882,-2309.01,0.00017753,2]
[366261136,1750164756892,-491.21,0.00017753,2]
[366261137,1750164756902,-1850.524618,0.00017753,2]
[366261138,1750164756911,-490.0,0.00017753,2]
[366261139,1750164756921,-490.0,0.00017753,2]
[366261140,1750164756931,-3025.16,0.00017753,2]
[366261141,1750164756941,-490.0,0.00017753,2]
[366261142,1750164756950,-978.71,0.00017753,2]
[366261143,1750164756960,-1827.87,0.00017753,2]
[366261144,1750164756969,-2376.97,0.00017753,2]
[366261145,1750164756978,-665.58,0.00017753,2]
[366261146,1750164756987,-2059.97,0.00017753,2]
[366261147,1750164756998,-490.0,0.00017753,2]
[366261148,1750164757007,-2092.53,0.00017753,2]
[366261149,1750164757017,-490.0,0.00017753,2]
[366261150,1750164757027,-490.0,0.00017753,2]
[366261151,1750164757037,-1763.65,0.00017753,2]
[366261152,1750164757048,-5417.93,0.00017753,2]
[366261153,1750164757058,-1518.66,0.00017753,2]
[366261154,1750164757067,-490.0,0.00017753,2]
[366261155,1750164757077,-947.96,0.00017753,2]
[366261156,1750164757087,-490.0,0.00017753,2]
[366261157,1750164757098,-1099.29,0.00017753,2]
[366261158,1750164757108,-490.0,0.00017753,2]
[366261159,1750164757118,-490.0,0.00017753,2]
[366261160,1750164757128,-151.0,0.00017753,2]
[366261161,1750164757138,-151.0,0.00017753,2]
[366261162,1750164757147,-490.0,0.00017753,2]
[366261163,1750164757157,-151.0,0.00017753,2]
[366261164,1750164757166,-1237.37,0.00017753,2]
[366261165,1750164757176,-213.781959,0.00017753,2]
[366261166,1750164757188,-213.781959,0.00017753,2]
[366261167,1750164757199,-354.8,0.00017753,2]
[366261168,1750164757209,-213.781959,0.00017753,2]
[366261169,1750164757219,-213.781959,0.00017753,2]
[366261170,1750164757228,-6182.7,0.00017753,2]
[366261171,1750164757238,-492.19,0.00017753,2]
[366261172,1750164757248,-213.781959,0.00017753,2]
[366261173,1750164757258,-213.781959,0.00017753,2]
[366261174,1750164757268,-734.6,0.00017753,2]
[366261175,1750164757278,-1065.56,0.00017753,2]
[366261176,1750164757288,-490.0,0.00017753,2]
[366261177,1750164757297,-833.42,0.00017753,2]
[366261178,1750164757308,-213.781959,0.00017753,2]
[366261179,1750164757318,-213.781959,0.00017753,2]
[366261180,1750164757327,-213.781959,0.00017753,2]
[366261181,1750164757337,-213.781959,0.00017753,2]
[366261182,1750164757347,-213.781959,0.00017753,2]
[366261183,1750164757357,-213.781959,0.00017753,2]
[366261184,1750164757367,-7839.6,0.00017753,2]
[366261185,1750164757377,-1638.538412,0.00017753,2]
[366261186,1750164757387,-490.0,0.00017753,2]
[366261187,1750164757396,-187.61818678,0.00017753,2]
[366261188,1750164757406,-556.2,0.00017753,2]
[366261189,1750164757417,-16871.86,0.00017753,2]
[366261190,1750164757427,-1710.39,0.00017753,2]
[366261191,1750164757438,-2361.36,0.00017753,2]
[366261192,1750164757448,-490.0,0.00017753,2]
[366261193,1750164757459,-490.0,0.00017753,2]
[366261194,1750164757470,-5618.96,0.00017753,2]
[366261195,1750164757480,-606.69,0.00017753,2]
[366261196,1750164757490,-490.0,0.00017753,2]
[366261197,1750164757500,-583.96,0.00017753,2]
[366261198,1750164757511,-1285.51,0.00017753,2]
[366261199,1750164757521,-894.67,0.00017753,2]
[366261200,1750164757531,-490.0,0.00017753,2]
[366261201,1750164757540,-568.94,0.00017753,2]
[366261202,1750164757551,-490.0,0.00017753,2]
[366261203,1750164757561,-490.0,0.00017753,2]
[366261204,1750164757571,-2491.31,0.00017753,2]
[366261205,1750164757581,-490.0,0.00017753,2]
[366261206,1750164757592,-523.4,0.00017753,2]
[366261207,1750164757603,-490.0,0.00017753,2]
[366261208,1750164757613,-541.7,0.00017753,2]
[366261209,1750164757623,-1277.93,0.00017753,2]
[366261210,1750164757633,-709.0,0.00017753,2]
[366261211,1750164757643,-1650.05,0.00017753,2]
[366261212,1750164757652,-490.0,0.00017753,2]
[366261213,1750164757662,-490.0,0.00017753,2]
[366261214,1750164757672,-761.47,0.00017753,2]
[366261215,1750164757682,-704.002625,0.00017753,2]
[366261216,1750164757692,-704.002625,0.00017753,2]
[366261217,1750164757703,-490.0,0.00017753,2]
[366261218,1750164757713,-704.002625,0.00017753,2]
[366261219,1750164757722,-704.002625,0.00017753,2]
[366261220,1750164757732,-704.002625,0.00017753,2]
[366261221,1750164757741,-490.0,0.00017753,2]
[366261222,1750164757751,-490.0,0.00017753,2]
[366261223,1750164757760,-704.002625,0.00017753,2]
[366261224,1750164757770,-490.0,0.00017753,2]
[366261225,1750164757779,-704.002625,0.00017753,2]
[366261226,1750164757789,-1193.08,0.00017753,2]
[366261227,1750164757799,-704.002625,0.00017753,2]
[366261228,1750164757808,-664.73,0.00017753,2]
[366261229,1750164757818,-704.002625,0.00017753,2]
[366261230,1750164757828,-490.0,0.00017753,2]
[366261231,1750164757838,-2646.76,0.00017753,2]
[366261232,1750164757848,-704.002625,0.00017753,2]
[366261233,1750164757858,-171.296575,0.00017753,2]
[366261234,1750164757869,-704.002625,0.00017753,2]
[366261235,1750164757880,-171.296575,0.00017753,2]
[366261236,1750164757890,-171.296575,0.00017753,2]
[366261237,1750164757900,-704.00263176,0.00017753,2]
[366261238,1750164757910,-171.296575,0.00017753,2]
[366261239,1750164757920,-2826.37,0.00017753,2]
[366261240,1750164757931,-171.296575,0.00017753,2]
[366261241,1750164757942,-490.0,0.00017753,2]
[366261242,1750164757952,-171.296575,0.00017753,2]
[366261243,1750164757962,-490.0,0.00017753,2]
[366261244,1750164757972,-171.296575,0.00017753,2]
[366261245,1750164757982,-4780.04,0.00017753,2]
[366261246,1750164757992,-171.296575,0.00017753,2]
[366261247,1750164758002,-391.508113,0.00017753,2]
[366261248,1750164758012,-171.296575,0.00017753,2]
[366261249,1750164758023,-391.508113,0.00017753,2]
[366261250,1750164758033,-171.296575,0.00017753,2]
[366261251,1750164758043,-391.508113,0.00017753,2]
[366261252,1750164758053,-653.71,0.00017753,2]
[366261253,1750164758062,-171.296575,0.00017753,2]
[366261254,1750164758071,-391.508113,0.00017753,2]
[366261255,1750164758080,-391.508113,0.00017753,2]
[366261256,1750164758090,-391.508113,0.00017753,2]
[366261257,1750164758099,-1477.76,0.00017753,2]
[366261258,1750164758109,-171.296569,0.00017753,2]
[366261259,1750164758119,-1164.36,0.00017753,2]
[366261260,1750164758128,-490.0,0.00017753,2]
[366261261,1750164758137,-391.508113,0.00017753,2]
[366261262,1750164758147,-490.0,0.00017753,2]
[366261263,1750164758157,-391.508113,0.00017753,2]
[366261264,1750164758166,-391.508113,0.00017753,2]
[366261265,1750164758176,-501.58,0.00017753,2]
[366261266,1750164758188,-391.508113,0.00017753,2]
[366261267,1750164758199,-391.508113,0.00017753,2]
[366261268,1750164758209,-391.508118,0.00017753,2]
[366261269,1750164758218,-2200.08,0.00017753,2]
[366261270,1750164758227,-490.0,0.00017753,2]
[366261271,1750164758237,-623.53,0.00017753,2]
[366261272,1750164758247,-1524.61,0.00017753,2]
[366261273,1750164758256,-1238.18,0.00017753,2]
[366261274,1750164758267,-151.0,0.00017753,2]
[366261275,1750164758276,-2456.65,0.00017753,2]
[366261276,1750164758286,-151.0,0.00017753,2]
[366261277,1750164758296,-151.0,0.00017753,2]
[366261278,1750164758307,-231.230912,0.00017753,2]
[366261279,1750164758317,-1289.32,0.00017753,2]
[366261280,1750164758328,-927.08,0.00017753,2]
[366261281,1750164758337,-490.0,0.00017753,2]
[366261282,1750164758347,-700.04,0.00017753,2]
[366261283,1750164758358,-8543.47,0.00017753,2]
[366261284,1750164758369,-490.0,0.00017753,2]
[366261285,1750164758379,-1722.14,0.00017753,2]
[366261286,1750164758390,-492.63,0.00017753,2]
[366261287,1750164758401,-3973.97,0.00017753,2]
[366261288,1750164758411,-490.0,0.00017753,2]
[366261289,1750164758423,-623.14,0.00017753,2]
[366261290,1750164758433,-490.0,0.00017753,2]
[366261291,1750164758443,-1069.77,0.00017753,2]
[366261292,1750164758454,-490.0,0.00017753,2]
[366261293,1750164758463,-490.0,0.00017753,2]
[366261294,1750164758473,-1146.38,0.00017753,2]
[366261295,1750164758483,-490.0,0.00017753,2]
[366261296,1750164758492,-1240.51,0.00017753,2]
[366261297,1750164758502,-899.89,0.00017753,2]
[366261298,1750164758513,-1288.48,0.00017753,2]
[366261299,1750164758523,-490.0,0.00017753,2]
[366261300,1750164758534,-8958.91,0.00017753,2]
[366261301,1750164758544,-4666.51,0.00017753,2]
[366261302,1750164758554,-900.12,0.00017753,2]
[366261303,1750164758564,-635.61,0.00017753,2]
[366261304,1750164758575,-490.0,0.00017753,2]
[366261305,1750164758586,-490.0,0.00017753,2]
[366261306,1750164758596,-1214.19,0.00017753,2]
[366261307,1750164758611,-841.35,0.00017753,2]
[366261308,1750164758621,-490.0,0.00017753,2]
[366261309,1750164758632,-1696.76,0.00017753,2]
[366261310,1750164758641,-6403.92,0.00017753,2]
[366261311,1750164758651,-5069.31,0.00017753,2]
[366261312,1750164758660,-1254.85,0.00017753,2]
[366261313,1750164758670,-490.0,0.00017753,2]
[366261314,1750164758680,-1922.55,0.00017753,2]
[366261315,1750164758690,-490.0,0.00017753,2]
[366261316,1750164758700,-490.0,0.00017753,2]
[366261317,1750164758710,-490.0,0.00017753,2]
[366261318,1750164758720,-572.96,0.00017753,2]
[366261319,1750164758730,-622.02,0.00017753,2]
[366261320,1750164758743,-1131.12,0.00017753,2]
[366261321,1750164758753,-541.2,0.00017753,2]
[366261322,1750164758763,-490.0,0.00017753,2]
[366261323,1750164758773,-490.0,0.00017753,2]
[366261324,1750164758783,-490.0,0.00017753,2]
[366261325,1750164758794,-3565.34,0.00017753,2]
[366261326,1750164758803,-958.15,0.00017753,2]